bitfinex/quotes_BTCUSD_20251011
["timestamp","ask_amount","ask_price","bid_price","bid_amount"]
[1760174961244,3.34073425,112000.0,111990.0,0.10099995]
[1760174961616,3.34073425,112000.0,111990.0,0.09999995]
[1760174962211,3.34073425,112000.0,111990.0,0.10099995]
[1760174964780,3.29073425,112000.0,111990.0,0.10099995]
[1760174967396,3.31759802,112000.0,111990.0,0.10099995]
[1760174967680,3.26602802,112000.0,111990.0,0.13929435]
[1760174967927,3.31576802,112000.0,111990.0,0.13929435]
[1760174968273,3.26602802,112000.0,111990.0,0.13929435]
[1760174968479,3.20507802,112000.0,111990.0,0.15626435]
[1760174968679,3.20507802,112000.0,111990.0,0.20643435]
[1760174968878,3.31503802,112000.0,111990.0,0.10584435]
[1760174969120,3.31503802,112000.0,111990.0,0.13929435]
[1760174969329,3.26529802,112000.0,111990.0,0.15626435]
[1760174970122,3.31503802,112000.0,111990.0,0.10584435]
[1760174974471,3.31503802,112000.0,111990.0,0.12374435]
[1760174974678,3.31503802,112000.0,111990.0,0.10584435]
[1760174982700,3.31503802,112000.0,111990.0,0.0058444]
[1760174983678,3.31503802,112000.0,111990.0,0.0048444]
[1760174985194,3.31603802,112000.0,111990.0,0.0048444]
[1760174988189,3.31603802,112000.0,111990.0,0.1039044]
[1760174988190,2.89164802,112000.0,111990.0,0.1039044]
[1760174988420,2.86607802,112000.0,111990.0,0.1039044]
[1760174988862,3.00920203,112000.0,111990.0,0.1039044]
[1760174989071,3.00820203,112000.0,111990.0,0.1039044]
[1760174989287,3.00820203,112000.0,111990.0,0.1340563]
[1760174989495,3.00920203,112000.0,111990.0,0.1340563]
[1760174989706,2.64133826,112000.0,111990.0,0.23405625]
[1760174990142,2.42941473,112000.0,111990.0,0.23405625]
[1760174990789,2.42941473,112000.0,111990.0,0.18384625]
[1760174991008,2.48670473,112000.0,111990.0,0.18484625]
[1760174991895,2.48670473,112000.0,111990.0,0.23505625]
[1760174992115,2.42941473,112000.0,111990.0,0.23505625]
[1760174993186,2.80261473,112000.0,111990.0,0.23505625]
[1760174993395,2.76941473,112000.0,111990.0,0.23505625]
[1760174994152,2.80261473,112000.0,111990.0,0.18484625]
[1760174994375,2.82670473,112000.0,111990.0,0.18484625]
[1760174994782,2.82670473,112000.0,111990.0,0.20274625]
[1760174994989,2.79350473,112000.0,111990.0,0.25295625]
[1760174995427,2.76941473,112000.0,111990.0,0.25295625]
[1760174996308,2.25084331,112000.0,111990.0,0.43154362]
[1760174996537,2.25084331,112000.0,111990.0,0.49508682]
[1760174997181,2.25084331,112000.0,111990.0,0.49408682]
[1760174997615,2.25084331,112000.0,111990.0,0.49608682]
[1760174998293,2.25084331,112000.0,111990.0,0.49708682]
[1760175000177,2.25084331,112000.0,111990.0,0.51311792]
[1760175000542,2.1301686,112000.0,111990.0,0.86307314]
[1760175000772,2.0951686,112000.0,111990.0,1.06747808]
[1760175000992,2.0951686,112000.0,111990.0,1.09432565]
[1760175001212,2.0951686,112000.0,111990.0,1.01492069]
[1760175001626,2.0951686,112000.0,111990.0,1.09421162]
[1760175002090,2.0951686,112000.0,111990.0,1.06821163]
[1760175002289,2.0951686,112000.0,111990.0,1.06721163]
[1760175002492,2.0951686,112000.0,111990.0,1.09421162]
[1760175002696,2.0951686,112000.0,111990.0,0.77023929]
[1760175002909,2.0951686,112000.0,111990.0,0.74339172]
[1760175003117,2.0951686,112000.0,111990.0,0.87354361]
[1760175003329,2.0951686,112000.0,111990.0,0.93695584]
[1760175004134,2.0951686,112000.0,111990.0,0.49695585]
[1760175004271,2.27374002,112000.0,111990.0,0.38549172]
[1760175004474,2.27374002,112000.0,111990.0,0.20690435]
[1760175005259,2.27374002,112000.0,111990.0,0.20490435]
[1760175005472,2.27374002,112000.0,111990.0,0.20590435]
[1760175005896,2.27374002,112000.0,111990.0,0.20690435]
[1760175006099,2.27374002,112000.0,111990.0,0.23405625]
[1760175006302,2.27374002,112000.0,111990.0,0.23505625]
[1760175007968,2.30686002,112000.0,111990.0,0.18484625]
[1760175008177,2.67264002,112000.0,111990.0,0.18484625]
[1760175008769,2.72463002,112000.0,111990.0,0.10584435]
[1760175010793,2.75149593,112000.0,111990.0,0.10584435]
[1760175011551,2.75149593,112000.0,111990.0,0.0058444]
[1760175012364,2.75149593,112000.0,111990.0,0.0048444]
[1760175014129,2.75249593,112000.0,111990.0,0.0048444]
[1760175021083,2.70050593,112000.0,111990.0,0.0372144]
[1760175021261,2.30160593,112000.0,111990.0,0.1065144]
[1760175021410,2.30160593,112000.0,111990.0,0.1366663]
[1760175022309,2.36050593,112000.0,111990.0,0.12262435]
[1760175022551,2.30060593,112000.0,111990.0,0.20651435]
[1760175022949,2.33372593,112000.0,111990.0,0.15499435]
[1760175023153,2.30060593,112000.0,111990.0,0.15499435]
[1760175023356,2.30060593,112000.0,111990.0,0.20651435]
[1760175023965,2.30060593,112000.0,111990.0,0.20751435]
[1760175024503,2.64060593,112000.0,111990.0,0.20751435]
[1760175025961,2.30060593,112000.0,111990.0,0.23766625]
[1760175027198,2.40666593,112000.0,111990.0,0.12362435]
[1760175027612,2.40666593,112000.0,111990.0,0.15620435]
[1760175027754,2.71980002,112000.0,111990.0,0.15620435]
[1760175027957,2.67079002,112000.0,111990.0,0.15620435]
[1760175028359,2.71980002,112000.0,111990.0,0.10584435]
[1760175029185,2.67079002,112000.0,111990.0,0.15503435]
[1760175030016,2.47352173,112000.0,111990.0,0.15503435]
[1760175030447,2.41647173,112000.0,111990.0,0.20281435]
[1760175033078,2.47352173,112000.0,111990.0,0.15503435]
[1760175033504,2.41647173,112000.0,111990.0,0.20281435]
[1760175034292,2.44887173,112000.0,111990.0,0.15503435]
[1760175034512,2.41647173,112000.0,111990.0,0.20281435]
[1760175037259,2.07647173,112000.0,111990.0,0.20281435]
[1760175037460,2.13352173,112000.0,111990.0,0.15503435]
[1760175037929,2.18253173,112000.0,111990.0,0.10584435]
[1760175038138,2.07647173,112000.0,111990.0,0.20281435]
[1760175038341,2.44887173,112000.0,111990.0,0.15503435]
[1760175038894,2.41647173,112000.0,111990.0,0.20281435]
[1760175039099,2.41647173,112000.0,111990.0,0.23296625]
[1760175040039,2.41647173,112000.0,111990.0,0.29650696]
[1760175040427,2.07647173,112000.0,111990.0,0.23296625]
[1760175046433,2.07647173,112000.0,111990.0,0.29650696]
[1760175047281,2.07647173,112000.0,111990.0,0.23296625]
[1760175047489,2.07647173,112000.0,111990.0,0.29650696]
[1760175053315,2.07647173,112000.0,111990.0,0.41155362]
[1760175053316,1.89790031,112000.0,111990.0,0.41155362]
[1760175053528,1.77721596,112000.0,111990.0,0.41155362]
[1760175053744,1.77721596,112000.0,111990.0,0.47551648]
[1760175053947,1.95578738,112000.0,111990.0,0.29692911]
[1760175054775,1.95578738,112000.0,111990.0,0.47551648]
[1760175054977,1.95578738,112000.0,111990.0,0.47451648]
[1760175055403,1.95578738,112000.0,111990.0,0.29692911]
[1760175061168,2.32858738,112000.0,111990.0,0.15503435]
[1760175061343,2.40539738,112000.0,111990.0,0.13828435]
[1760175061494,2.40539738,112000.0,111990.0,0.10584435]
[1760175061889,2.40539738,112000.0,111990.0,0.10484435]
[1760175062094,2.35434738,112000.0,111990.0,0.15291435]
[1760175062395,2.35434738,112000.0,111990.0,0.15391435]
[1760175062751,1.95578738,112000.0,111990.0,0.10901835]
[1760175062974,1.95578738,112000.0,111990.0,0.19882995]
[1760175063215,1.98858738,112000.0,111990.0,0.19882995]
[1760175063416,2.01434738,112000.0,111990.0,0.14906995]
[1760175063622,2.01421231,112000.0,111990.0,0.14906995]
[1760175064034,1.95565231,112000.0,111990.0,0.19882995]
[1760175064245,1.98845231,112000.0,111990.0,0.14906995]
[1760175064442,2.06526231,112000.0,111990.0,0.10099995]
[1760175064863,1.95565231,112000.0,111990.0,0.13343995]
[1760175065025,2.06526231,112000.0,111990.0,0.14906995]
[1760175065345,2.01421231,112000.0,111990.0,0.14906995]
[1760175065753,2.06526231,112000.0,111990.0,0.10099995]
[1760175066116,2.40526231,112000.0,111990.0,0.10099995]
[1760175068943,2.35421231,112000.0,111990.0,0.13343995]
[1760175069168,2.29565231,112000.0,111990.0,0.20843995]
[1760175069813,2.32845231,112000.0,111990.0,0.15867995]
[1760175070037,2.29565231,112000.0,111990.0,0.15867995]
[1760175070255,2.29565231,112000.0,111990.0,0.20843995]
[1760175071351,2.32845231,112000.0,111990.0,0.15867995]
[1760175071565,2.35421231,112000.0,111990.0,0.15867995]
[1760175072489,2.40526231,112000.0,111990.0,0.10099995]
[1760175077398,2.39526231,112000.0,111990.0,0.10099995]
[1760175077623,2.39526231,112000.0,111990.0,0.001]
[1760175078229,0.17858737,111990.0,111980.0,0.00095687]
[1760175078385,0.20434737,111990.0,111980.0,0.00095687]
[1760175078589,0.28819737,111990.0,111980.0,0.10095682]
[1760175080706,0.62819737,111990.0,111980.0,0.10195682]
[1760175086246,0.62819737,111990.0,111980.0,0.10095682]
[1760175088507,0.65506817,111990.0,111980.0,0.10095682]
[1760175091855,0.65506817,111990.0,111980.0,0.00095687]
[1760175092690,0.65606817,111990.0,111980.0,0.00095687]
[1760175102952,0.17866714,111940.0,111930.0,0.13551114]
[1760175103230,0.17866714,111940.0,111930.0,0.07167416]
[1760175103231,0.62461714,111940.0,111930.0,0.07167416]
[1760175103461,0.62461714,111940.0,111930.0,5.054e-05]
[1760175103737,0.6514966,111940.0,111930.0,0.00295682]
[1760175104154,0.6514966,111940.0,111930.0,0.10295677]
[1760175105305,0.6514966,111940.0,111930.0,0.13487677]
[1760175105547,0.6514966,111940.0,111930.0,0.13587677]
[1760175105830,0.6003966,111940.0,111930.0,0.13587677]
[1760175106169,0.6514966,111940.0,111930.0,0.13587677]
[1760175106370,0.6514966,111940.0,111930.0,0.10395677]
[1760175106610,0.46836896,111940.0,111930.0,0.10395677]
[1760175106817,0.6470361,111940.0,111930.0,0.10395677]
[1760175107445,0.5455466,111940.0,111930.0,0.16054677]
[1760175107591,0.5767366,111940.0,111930.0,0.16054677]
[1760175107796,0.6003966,111940.0,111930.0,0.16054677]
[1760175108001,0.6514966,111940.0,111930.0,0.10395677]
[1760175110141,0.6514966,111940.0,111930.0,0.13587677]
[1760175110348,0.6003966,111940.0,111930.0,0.13587677]
[1760175110557,0.6003966,111940.0,111930.0,0.16054677]
[1760175110764,0.5692066,111940.0,111930.0,0.20846677]
[1760175110969,0.6003966,111940.0,111930.0,0.20846677]
[1760175111180,0.6514966,111940.0,111930.0,0.10395677]
[1760175111597,0.6003966,111940.0,111930.0,0.16054677]
[1760175112235,0.5767366,111940.0,111930.0,0.20846677]
[1760175112422,0.5455466,111940.0,111930.0,0.20846677]
[1760175113531,0.6514966,111940.0,111930.0,0.16054677]
[1760175113720,0.6003966,111940.0,111930.0,0.16054677]
[1760175115359,0.5455466,111940.0,111930.0,0.20846677]
[1760175115363,0.2055466,111940.0,111930.0,0.23861867]
[1760175115569,0.17865118,111950.0,111940.0,0.0301519]
[1760175115768,0.18756698,111960.0,111940.0,0.27703904]
[1760175115769,0.17864458,111960.0,111940.0,0.27703904]
[1760175115996,0.17864458,111960.0,111950.0,0.1346619]
[1760175116211,0.17864458,111960.0,111950.0,0.13533792]
[1760175116942,0.17864458,111960.0,111950.0,0.1346619]
[1760175117069,0.17864458,111960.0,111950.0,0.23466185]
[1760175118572,0.17864458,111960.0,111950.0,0.23566185]
[1760175121714,0.21091458,111960.0,111950.0,0.15758995]
[1760175121911,0.17864458,111960.0,111950.0,0.20825995]
[1760175122127,0.17864458,111960.0,111950.0,0.21000341]
[1760175122937,0.17864458,111960.0,111950.0,0.10274341]
[1760175122938,0.62498458,111960.0,111950.0,0.10274341]
[1760175123225,0.62498458,111960.0,111950.0,0.00274346]
[1760175123425,0.65185952,111960.0,111950.0,0.00274346]
[1760175124355,0.65185952,111960.0,111950.0,0.00174346]
[1760175124563,0.65285952,111960.0,111950.0,0.00174346]
[1760175129128,0.60413952,111960.0,111950.0,0.03306346]
[1760175129766,0.54651952,111960.0,111950.0,0.10747346]
[1760175130311,0.20651952,111960.0,111950.0,0.10747346]
[1760175130514,0.54651952,111960.0,111950.0,0.10747346]
[1760175130912,0.57878952,111960.0,111950.0,0.05680346]
[1760175131340,0.65285952,111960.0,111950.0,0.00174346]
[1760175133565,0.57186952,111960.0,111950.0,0.03306346]
[1760175133776,0.54651952,111960.0,111950.0,0.10747346]
[1760175134206,0.57878952,111960.0,111950.0,0.05680346]
[1760175134679,0.60413952,111960.0,111950.0,0.05680346]
[1760175134903,0.65285952,111960.0,111950.0,0.02548346]
[1760175135342,0.65285952,111960.0,111950.0,0.00174346]
[1760175139040,0.60413952,111960.0,111950.0,0.03306346]
[1760175140336,0.60413952,111960.0,111950.0,0.00174346]
[1760175140471,0.65285952,111960.0,111950.0,0.00174346]
[1760175141849,0.65285952,111960.0,111950.0,0.03306346]
[1760175141850,0.60413952,111960.0,111950.0,0.03306346]
[1760175142098,0.65285952,111960.0,111950.0,0.00174346]
[1760175144967,0.65285952,111960.0,111950.0,1e-08]
[1760175145184,0.67785951,111960.0,111950.0,1e-08]
[1760175146285,0.70801141,111960.0,111950.0,1e-08]
[1760175146512,0.84397983,111960.0,111950.0,1e-08]
[1760175146747,5.92173651,111960.0,111950.0,1e-08]
[1760175146955,5.9264076,111960.0,111950.0,1e-08]
[1760175147718,6.02640759,111960.0,111950.0,1e-08]
[1760175148355,5.89865092,111960.0,111950.0,1e-08]
[1760175148598,5.99865091,111960.0,111950.0,1e-08]
[1760175148806,5.99765091,111960.0,111950.0,1e-08]
[1760175149147,5.99862836,111960.0,111950.0,1e-08]
[1760175149337,5.99762836,111960.0,111950.0,1e-08]
[1760175149740,5.89962837,111960.0,111950.0,1e-08]
[1760175149954,5.99962836,111960.0,111950.0,1e-08]
[1760175150183,5.79962838,111960.0,111950.0,1e-08]
[1760175150407,5.89962837,111960.0,111950.0,1e-08]
[1760175150869,5.99962836,111960.0,111950.0,1e-08]
[1760175151270,6.00429976,111960.0,111950.0,1e-08]
[1760175151732,5.90429977,111960.0,111950.0,1e-08]
[1760175151944,6.00429976,111960.0,111950.0,1e-08]
[1760175152144,5.90424651,111960.0,111950.0,1e-08]
[1760175152350,6.01825511,111960.0,111950.0,1e-08]
[1760175154897,5.91825512,111960.0,111950.0,1e-08]
[1760175155099,6.01825511,111960.0,111950.0,1e-08]
[1760175156448,6.04475546,111960.0,111950.0,1e-08]
[1760175159776,6.01825511,111960.0,111950.0,1e-08]
[1760175160795,6.01820488,111960.0,111950.0,1e-08]
[1760175161019,5.91820489,111960.0,111950.0,1e-08]
[1760175161218,6.04283683,111960.0,111950.0,1e-08]
[1760175161628,5.94283684,111960.0,111950.0,1e-08]
[1760175162127,6.04283683,111960.0,111950.0,1e-08]
[1760175162546,6.01820488,111960.0,111950.0,1e-08]
[1760175165080,6.05030213,111960.0,111950.0,1e-08]
[1760175165600,6.07493408,111960.0,111950.0,1e-08]
[1760175166869,6.06092547,111960.0,111950.0,1e-08]
[1760175167275,6.07697307,111960.0,111950.0,1e-08]
[1760175167889,0.178731,111900.0,111890.0,1e-08]
[1760175168097,0.17876296,111880.0,111870.0,0.0004]
[1760175168230,0.23278296,111880.0,111870.0,0.00090587]
[1760175168435,0.27922296,111880.0,111870.0,0.00090587]
[1760175170948,0.28022296,111880.0,111870.0,0.00090587]
[1760175171967,0.28022296,111880.0,111870.0,0.00025708]
[1760175172911,0.35206185,111880.0,111870.0,1e-08]
[1760175173874,0.17877893,111870.0,111860.0,1e-08]
[1760175174092,0.21870078,111870.0,111860.0,0.00523529]
[1760175174282,0.32143077,111870.0,111860.0,1e-08]
[1760175174844,0.1788109,111850.0,111840.0,10.68736941]
[1760175175048,0.1788109,111850.0,111840.0,10.78736936]
[1760175175049,0.2479809,111850.0,111840.0,10.78736936]
[1760175175257,0.2646905,111850.0,111840.0,10.34051793]
[1760175175482,0.2646905,111850.0,111840.0,10.07112376]
[1760175175688,0.2646905,111850.0,111840.0,9.80666979]
[1760175175689,0.28969049,111850.0,111840.0,9.80666979]
[1760175176087,0.32098049,111850.0,111840.0,9.80666979]
[1760175176858,0.32098049,111850.0,111840.0,9.80766979]
[1760175177264,0.66098049,111850.0,111840.0,9.80666979]
[1760175180480,0.66098049,111850.0,111840.0,9.80783386]
[1760175180995,0.63594398,111850.0,111840.0,9.80783386]
[1760175181619,0.63593876,111850.0,111840.0,9.80783386]
[1760175181773,0.24949876,111850.0,111840.0,9.83890386]
[1760175181963,0.24949876,111850.0,111840.0,9.86235386]
[1760175182209,0.19547876,111850.0,111840.0,9.90930386]
[1760175183040,0.56662876,111850.0,111840.0,9.96235381]
[1760175183228,0.19547876,111850.0,111840.0,10.00930381]
[1760175183356,0.1788109,111850.0,111840.0,10.00930381]
[1760175183767,0.5188109,111850.0,111840.0,10.03945571]
[1760175183965,0.1788109,111850.0,111840.0,10.04045571]
[1760175184380,0.1788109,111850.0,111840.0,10.03945571]
[1760175184840,0.1788109,111850.0,111840.0,10.04145571]
[1760175185053,0.1788109,111850.0,111840.0,10.01130381]
[1760175185227,0.1788109,111850.0,111840.0,10.01030381]
[1760175186049,0.5188109,111850.0,111840.0,9.96335381]
[1760175186208,0.5917109,111850.0,111840.0,9.90883381]
[1760175186405,0.6228609,111850.0,111840.0,9.90783381]
[1760175186648,0.63953488,111850.0,111840.0,9.90883381]
[1760175186823,0.63953488,111850.0,111840.0,9.80983386]
[1760175187273,0.53548488,111850.0,111840.0,9.91030386]
[1760175187418,0.53548488,111850.0,111840.0,9.90930386]
[1760175187620,0.53548488,111850.0,111840.0,9.91030386]
[1760175188246,0.53548488,111850.0,111840.0,9.90930386]
[1760175188430,0.1788109,111850.0,111840.0,10.01030381]
[1760175188833,0.13864939,111860.0,111840.0,10.01030381]
[1760175189039,0.1788109,111850.0,111840.0,9.96218974]
[1760175189652,0.1788109,111850.0,111840.0,10.00813974]
[1760175189867,0.1788109,111850.0,111840.0,10.00913974]
[1760175190214,0.1788109,111850.0,111840.0,10.01013974]
[1760175192022,0.1788109,111850.0,111840.0,9.90866974]
[1760175192023,0.60839796,111850.0,111840.0,9.90866974]
[1760175192476,0.63954796,111850.0,111840.0,9.90866974]
[1760175192676,0.63955489,111850.0,111840.0,9.80866979]
[1760175193113,0.63955489,111850.0,111840.0,9.37097835]
[1760175193358,0.63955489,111850.0,111840.0,9.36997835]
[1760175193847,0.66455488,111850.0,111840.0,8.86806006]
[1760175197558,0.66455488,111850.0,111840.0,8.44658039]
[1760175197970,0.66455488,111850.0,111840.0,8.44774446]
[1760175198192,0.66455488,111850.0,111840.0,8.02902445]
[1760175198405,0.69470678,111850.0,111840.0,7.50296408]
[1760175198601,5.86394795,111850.0,111840.0,7.40689587]
[1760175198852,5.86862345,111850.0,111840.0,7.21808245]
[1760175199042,5.86862345,111850.0,111840.0,7.00418696]
[1760175199263,5.86862345,111850.0,111840.0,6.92659556]
[1760175199497,5.86862345,111850.0,111840.0,6.75068479]
[1760175199704,0.82062345,111850.0,111840.0,6.75068479]
[1760175199927,0.82262345,111850.0,111840.0,6.5333934]
[1760175200345,0.82262345,111850.0,111840.0,6.05738008]
[1760175200496,0.82262345,111850.0,111840.0,5.85016237]
[1760175200715,0.82262345,111850.0,111840.0,5.75984144]
[1760175200917,0.82262345,111850.0,111840.0,5.45821432]
[1760175201130,0.82262345,111850.0,111840.0,5.26518585]
[1760175201465,5.87262345,111850.0,111840.0,4.88389675]
[1760175201787,5.87262345,111850.0,111840.0,4.63561914]
[1760175201994,5.87262345,111850.0,111840.0,4.58076087]
[1760175202199,5.87262345,111850.0,111840.0,4.26243878]
[1760175202407,5.87262345,111850.0,111840.0,4.09539204]
[1760175202598,5.87729485,111850.0,111840.0,3.93580041]
[1760175202834,5.87729485,111850.0,111840.0,3.86842044]
[1760175203010,5.89131638,111850.0,111840.0,3.6922388]
[1760175203373,5.89131638,111850.0,111840.0,3.4438277]
[1760175203777,5.81823352,111850.0,111840.0,2.71357275]
[1760175204105,6.04618134,111850.0,111840.0,2.21415098]
[1760175204316,6.0182335,111850.0,111840.0,2.00460312]
[1760175204869,6.0182335,111850.0,111840.0,1.69912722]
[1760175205076,5.72458731,111850.0,111840.0,1.49168435]
[1760175205279,6.0033982,111850.0,111840.0,1.38787907]
[1760175205482,6.0033982,111850.0,111840.0,1.30208497]
[1760175205631,5.80339822,111850.0,111840.0,1.08515745]
[1760175205848,6.0033982,111850.0,111840.0,0.9630664]
[1760175206052,6.0033982,111850.0,111840.0,0.75455934]
[1760175206260,5.80339822,111850.0,111840.0,0.65407698]
[1760175207001,6.0033982,111850.0,111840.0,0.20041492]
[1760175207214,5.80339822,111850.0,111840.0,1e-08]
[1760175207434,5.98937667,111850.0,111840.0,1e-08]
[1760175207873,5.69384286,111830.0,111820.0,0.0004]
[1760175208077,5.73965685,111830.0,111820.0,0.0004]
[1760175208304,5.83519685,111830.0,111820.0,0.00156439]
[1760175208694,5.83878615,111830.0,111820.0,0.00156439]
[1760175209128,5.84083659,111830.0,111820.0,0.00156439]
[1760175209589,5.7408366,111830.0,111820.0,0.00156439]
[1760175209779,5.87098849,111830.0,111820.0,0.00156439]
[1760175211479,0.79083659,111830.0,111820.0,0.00156439]
[1760175211680,0.6908366,111830.0,111820.0,0.00156439]
[1760175211883,0.3809885,111830.0,111820.0,0.00156439]
[1760175212081,0.32583661,111830.0,111820.0,0.00156439]
[1760175212285,0.66583661,111830.0,111820.0,0.00156439]
[1760175212551,0.32583661,111830.0,111820.0,0.00156439]
[1760175213185,0.24895332,111830.0,111820.0,0.00156439]
[1760175213420,0.30555332,111830.0,111820.0,0.00156439]
[1760175213644,0.30455332,111830.0,111820.0,0.00156439]
[1760175214297,0.30355332,111830.0,111820.0,0.00156439]
[1760175214728,0.64355332,111830.0,111820.0,0.00156439]
[1760175214952,0.66020235,111830.0,111820.0,0.00156439]
[1760175215981,0.65536412,111830.0,111820.0,0.00156439]
[1760175219351,0.65636412,111830.0,111820.0,0.00156439]
[1760175221194,0.63971509,111830.0,111820.0,0.00156439]
[1760175221383,0.65642916,111830.0,111820.0,0.00156439]
[1760175223177,0.41431407,111830.0,111820.0,0.00156439]
[1760175223393,0.63209695,111830.0,111820.0,0.00156439]
[1760175224508,0.70652731,111830.0,111820.0,0.00156439]
[1760175224941,0.68724884,111830.0,111820.0,0.00156439]
[1760175225168,0.78724883,111830.0,111820.0,0.00156439]
[1760175225379,0.80652705,111830.0,111820.0,0.00156439]
[1760175225591,0.80652705,111830.0,111820.0,1e-08]
[1760175226030,0.80652705,111830.0,111810.0,0.0004]
[1760175226031,0.54385887,111820.0,111810.0,1e-08]
[1760175226235,0.70721115,111820.0,111810.0,1e-08]
[1760175226352,0.75037115,111820.0,111810.0,1e-08]
[1760175226555,0.81409115,111820.0,111810.0,1e-08]
[1760175227410,5.89424305,111820.0,111810.0,1e-08]
[1760175228030,5.89524305,111820.0,111810.0,1e-08]
[1760175229118,0.85092006,111820.0,111810.0,1e-08]
[1760175229469,0.75092007,111820.0,111810.0,1e-08]
[1760175229672,0.85092006,111820.0,111810.0,1e-08]
[1760175230868,0.72076817,111820.0,111810.0,1e-08]
[1760175231308,0.67648996,111820.0,111810.0,1e-08]
[1760175231536,0.33648996,111820.0,111810.0,1e-08]
[1760175231754,0.33181295,111820.0,111810.0,0.00058231]
[1760175231962,0.67181295,111820.0,111810.0,0.00058231]
[1760175232512,0.33081295,111820.0,111810.0,0.00058231]
[1760175232925,0.67081295,111820.0,111810.0,0.00058231]
[1760175233163,0.67181295,111820.0,111810.0,0.00058231]
[1760175233326,0.67081295,111820.0,111810.0,0.00058231]
[1760175233722,0.26709295,111820.0,111810.0,0.04638231]
[1760175233923,0.20721888,111820.0,111810.0,0.14324231]
[1760175234128,0.17985888,111820.0,111810.0,0.14324231]
[1760175234347,0.17962189,111820.0,111810.0,0.14324231]
[1760175234640,0.17885888,111820.0,111810.0,0.14324231]
[1760175234854,0.17985888,111820.0,111810.0,0.14324231]
[1760175235062,0.51985888,111820.0,111810.0,0.14324231]
[1760175235348,0.51885888,111820.0,111810.0,0.14324231]
[1760175235519,0.51885888,111820.0,111810.0,0.24324226]
[1760175236896,0.51885888,111820.0,111810.0,0.24424226]
[1760175237101,0.56442888,111820.0,111810.0,0.17983226]
[1760175237858,0.51885888,111820.0,111810.0,0.17983226]
[1760175237997,0.56442888,111820.0,111810.0,0.10158226]
[1760175238211,0.56442888,111820.0,111810.0,0.00158231]
[1760175238645,0.57888391,111820.0,111810.0,0.00158231]
[1760175239041,0.56216577,111820.0,111810.0,0.00158231]
[1760175239257,0.56216577,111820.0,111810.0,0.00058231]
[1760175241824,0.56216577,111820.0,111810.0,0.07918231]
[1760175241995,0.51659577,111820.0,111810.0,0.07918231]
[1760175242197,0.56216577,111820.0,111810.0,0.07918231]
[1760175243260,0.51659577,111820.0,111810.0,0.07918231]
[1760175243673,0.51885888,111820.0,111810.0,0.14462231]
[1760175245088,0.51885888,111820.0,111810.0,0.24462226]
[1760175245974,0.34,111820.0,111810.0,0.24562226]
[1760175246202,0.00095861,111830.0,111810.0,0.24562226]
[1760175246416,0.00095861,111830.0,111820.0,0.09908]
[1760175246676,0.17980149,111830.0,111820.0,0.09908]
[1760175246878,0.51980149,111830.0,111820.0,0.09908]
[1760175247104,0.51885888,111820.0,111810.0,0.03522231]
[1760175247328,0.51885888,111820.0,111810.0,0.09966231]
[1760175247532,0.34,111820.0,111810.0,0.14462231]
[1760175248294,0.34,111820.0,111810.0,0.24462226]
[1760175248662,0.51885888,111820.0,111810.0,0.24462226]
[1760175249081,0.51885888,111820.0,111810.0,0.24562226]
[1760175249710,0.34,111820.0,111810.0,0.24562226]
[1760175250123,0.34,111820.0,111810.0,0.27577416]
[1760175252451,0.34,111820.0,111810.0,0.45464903]
[1760175252670,0.00095861,111830.0,111820.0,0.0301519]
[1760175252887,0.00095861,111830.0,111820.0,0.13314208]
[1760175253095,0.34095861,111830.0,111820.0,0.1741919]
[1760175253907,0.34095861,111830.0,111820.0,0.27419185]
[1760175254325,0.17882761,111840.0,111820.0,0.27519185]
[1760175254549,0.18775409,111850.0,111830.0,0.09908]
[1760175254749,0.18775409,111850.0,111840.0,0.03364]
[1760175254962,0.18775409,111850.0,111840.0,0.0786]
[1760175255810,0.18775409,111850.0,111840.0,0.17859995]
[1760175256015,0.18775409,111850.0,111840.0,0.09999995]
[1760175256221,0.18775409,111850.0,111840.0,0.14495995]
[1760175256417,0.52775409,111850.0,111840.0,0.09999995]
[1760175256593,0.57332409,111850.0,111840.0,0.09999995]
[1760175256799,0.52775409,111850.0,111840.0,0.17859995]
[1760175257001,0.52775409,111850.0,111840.0,0.24403995]
[1760175257213,0.52775409,111850.0,111840.0,0.17859995]
[1760175257813,0.52775409,111850.0,111840.0,0.09999995]
[1760175258046,0.57332409,111850.0,111840.0,0.09999995]
[1760175259263,0.57332409,111850.0,111840.0,0.14495995]
[1760175260206,0.52775409,111850.0,111840.0,0.24403995]
[1760175260630,0.52775409,111850.0,111840.0,0.17859995]
[1760175261072,0.57226409,111850.0,111840.0,0.17859995]
[1760175261307,0.57226409,111850.0,111840.0,0.09999995]
[1760175261530,0.57226409,111850.0,111840.0,0.17859995]
[1760175262060,0.6347748,111850.0,111840.0,0.09999995]
[1760175262526,0.5253848,111850.0,111840.0,0.24403995]
[1760175262997,0.1788109,111850.0,111840.0,0.24403995]
[1760175263649,0.17879515,111860.0,111840.0,0.24403995]
[1760175263876,0.17879515,111860.0,111850.0,0.09908]
[1760175264070,0.17879515,111860.0,111850.0,0.14404]
[1760175264690,0.21706927,111870.0,111850.0,0.14404]
[1760175264855,0.20571683,111890.0,111860.0,0.09908]
[1760175265073,0.17880858,111900.0,111880.0,0.0786]
[1760175265277,0.21907824,111910.0,111890.0,0.03736294]
[1760175265674,0.178731,111900.0,111890.0,0.09908]
[1760175265894,0.178731,111900.0,111890.0,0.0786]
[1760175266094,0.17923707,111900.0,111890.0,0.0786]
[1760175266302,0.18330957,111900.0,111890.0,0.14404]
[1760175266700,0.18330957,111900.0,111890.0,0.24403995]
[1760175266938,0.18330957,111900.0,111890.0,0.17859995]
[1760175267175,0.18330957,111900.0,111890.0,0.24541995]
[1760175268022,0.22542957,111900.0,111890.0,0.17859995]
[1760175268439,0.22542957,111900.0,111890.0,0.09999995]
[1760175269626,0.29044957,111900.0,111890.0,0.09999995]
[1760175270304,0.22542957,111900.0,111890.0,0.14202995]
[1760175270521,0.06767391,111900.0,111890.0,0.09999995]
[1760175270933,0.24640491,111900.0,111890.0,0.09999995]
[1760175271549,0.18138491,111900.0,111890.0,0.09999995]
[1760175272050,0.18138491,111900.0,111890.0,0.17571995]
[1760175272251,0.211341,111900.0,111890.0,0.17571995]
[1760175272474,0.178731,111900.0,111890.0,0.24253995]
[1760175273200,0.178731,111900.0,111890.0,0.17571995]
[1760175273434,0.211341,111900.0,111890.0,0.17571995]
[1760175274646,0.211341,111900.0,111890.0,0.09999995]
[1760175274836,0.250601,111900.0,111890.0,0.09999995]
[1760175275462,0.211341,111900.0,111890.0,0.14202995]
[1760175275705,0.178731,111900.0,111890.0,0.24253995]
[1760175276046,0.21907824,111910.0,111890.0,0.24253995]
[1760175276249,0.19241824,111910.0,111900.0,0.10051]
[1760175276501,0.0046714,111910.0,111900.0,0.14254]
[1760175276698,0.17876044,111920.0,111900.0,0.14707558]
[1760175276897,0.51876044,111920.0,111910.0,0.03369]
[1760175277056,0.51876044,111920.0,111910.0,0.14254]
[1760175277492,0.56088044,111920.0,111910.0,0.07572]
[1760175277921,0.51876044,111920.0,111910.0,0.07572]